[Event "18th Charleroi Open-A 2019"]
[Site "Charleroi"]
[Date "2019.08.02"]
[Round "8.2"]
[White "Abdullayev, Elshad"]
[Black "Gutenev, Alexander"]
[Result "0-1"]
[ECO "D77"]
[WhiteElo "2204"]
[BlackElo "2470"]
[Annotator "ChessBase"]
[PlyCount "54"]
[EventDate "2019.07.22"]
[EventType "swiss"]
[EventCountry "BEL"]
[SourceTitle "playchess.com"]
[Source "ChessBase"]
[SourceQuality "1"]
[TimeControl "40/5400+30:1800+30"]

1. Nf3 {[%emt 0:07:44]} Nf6 {[%emt 0:00:00]} 2. g3 {[%emt 0:01:11]} b6 {[%emt 0:00:25]} 3. Bg2 {[%emt 0:00:40]} Bb7 {[%emt 0:00:06]} 4. O-O {[%emt 0:00:14]} g6 {[%emt 0:00:04]} 5. b3 {[%emt 0:10:14]} Bg7 {[%emt 0:02:00]} 6. Bb2 {[%emt 0:00:05]} O-O {[%emt 0:00:09]} 7. c4 {[%emt 0:00:10]} e6 {[%emt 0:02:52]} 8. d4 {[%emt 0:06:23]} d5 {[%emt 0:01:46]} 9. Nbd2 {[%emt 0:05:09]} Na6 {[%emt 0:01:50]} 10. Rc1 {[%emt 0:02:02]} c5 {[%emt 0:00:35]} 11. dxc5 {[%emt 0:04:01]} bxc5 {[%emt 0:02:41]} 12. Qc2 {[%emt 0:03:38]} d4 {[%emt 0:03:28]} 13. a3 {[%emt 0:04:44]} Re8 {[%emt 0:11:37]} 14. b4 {[%emt 0:04:45]} e5 {[%emt 0:02:18]} 15. b5 {[%emt 0:00:46]} Nc7 {[%emt 0:00:53]} 16. Nb3 {[%emt 0:15:00]} Qd6 {[%emt 0:06:55]} 17. a4 {[%emt 0:20:08]} Rad8 {[%emt 0:08:43]} 18. Ba3 {[%emt 0:03:48]} Ne6 {[%emt 0:00:30]} 19. Nfd2 {[%emt 0:01:53]} Bxg2 {[%emt 0:00:58]} 20. Kxg2 {[%emt 0:00:02]} Bh6 {[%emt 0:02:02]} 21. Rcd1 {[%emt 0:00:54]} e4 {[%emt 0:06:03]} 22. Nxe4 {[%emt 0:00:23]} Nxe4 {[%emt 0:00:35]} 23. Qxe4 {[%emt 0:00:52]} Nf4+ {[%emt 0:00:04]} 24. Qxf4 {[%emt 0:00:04]} Bxf4 {[%emt 0:00:04]} 25. Rxd4 {[%emt 0:02:29]} Qe7 {[%emt 0:05:23]} 26. Rxf4 {[%emt 0:01:12]} g5 {[%emt 0:00:18]} 27. Bxc5 Qb7+ {[%emt 0:00:09]} 0-1

[Event "18th Charleroi Open-A 2019"]
[Site "Charleroi"]
[Date "2019.08.02"]
[Round "8.3"]
[White "Lugovskoy, Maxim"]
[Black "Hoffmeister, Frank"]
[Result "1-0"]
[ECO "B12"]
[WhiteElo "2425"]
[BlackElo "2187"]
[Annotator "NA"]
[PlyCount "125"]
[EventDate "2019.07.22"]
[EventType "swiss"]
[EventCountry "BEL"]
[SourceTitle "playchess.com"]
[Source "ChessBase"]
[SourceQuality "1"]
[TimeControl "40/5400+30:1800+30"]

1. e4 {[%emt 0:00:00]} c6 {[%emt 0:00:00]} 2. d4 {[%emt 0:00:00]} d5 {[%emt 0:00:00]} 3. f3 {[%emt 0:01:10]} e6 {[%emt 0:00:57]} 4. Nc3 {[%emt 0:01:19]} Bb4 {[%emt 0:01:16]} 5. Bd2 {[%emt 0:00:39]} Bxc3 {[%emt 0:01:46]} 6. Bxc3 {[%emt 0:00:04]} dxe4 {[%emt 0:00:05]} 7. Nh3 {[%emt 0:00:02]} e3 {[%emt 0:07:33]} 8. Qd3 {[%emt 0:04:23]} Nf6 {[%emt 0:01:05]} 9. Qxe3 {[%emt 0:00:52]} Nd5 {[%emt 0:01:37]} 10. Qd3 {[%emt 0:06:45]} Nxc3 {[%emt 0:00:15]} 11. Qxc3 {[%emt 0:00:08]} O-O {[%emt 0:10:53]} 12. O-O-O {[%emt 0:01:08]} b6 {[%emt 0:05:59]} 13. g3 {[%emt 0:04:09]} Bb7 {[%emt 0:02:45]} 14. Bg2 {[%emt 0:00:40]} Nd7 {[%emt 0:00:26]} 15. f4 {[%emt 0:00:13]} Qc7 {[%emt 0:04:38]} 16. Ng5 {[%emt 0:04:50]} Nf6 {[%emt 0:05:05]} 17. h4 {[%emt 0:03:14]} c5 {[%emt 0:03:04]} 18. Bxb7 {[%emt 0:06:45]} Qxb7 {[%emt 0:00:03]} 19. dxc5 {[%emt 0:00:35]} Rac8 {[%emt 0:00:33]} 20. Qf3 {[%emt 0:00:41]} Qxf3 {[%emt 0:05:03]} 21. Nxf3 {[%emt 0:00:06]} Rxc5 {[%emt 0:00:05]} 22. Ne5 {[%emt 0:01:10]} Rfc8 {[%emt 0:00:42]} 23. c3 {[%emt 0:04:10]} Nd5 {[%emt 0:09:09]} 24. Kb1 {[%emt 0:00:31]} b5 {[%emt 0:04:05]} 25. Rhe1 {[%emt 0:00:46]} g6 {[%emt 0:01:02]} 26. h5 {[%emt 0:02:15]} R5c7 {[%emt 0:02:41]} 27. Rd4 {[%emt 0:01:36]} Kg7 {[%emt 0:00:59]} 28. a3 {[%emt 0:03:25]} a5 {[%emt 0:03:05]} 29. g4 {[%emt 0:01:45]} gxh5 {[%emt 0:06:29]} 30. gxh5 {[%emt 0:00:56]} Kf6 {[%emt 0:02:42]} 31. Rg1 {[%emt 0:00:38]} Ne3 {[%emt 0:06:10]} 32. Rd6 {[%emt 0:08:15]} b4 {[%emt 0:03:43]} 33. axb4 {[%emt 0:00:14]} axb4 {[%emt 0:00:01]} 34. cxb4 {[%emt 0:00:10]} Nd5 {[%emt 0:00:41]} 35. b5 {[%emt 0:02:29]} Nxf4 {[%emt 0:02:28]} 36. Nc6 {[%emt 0:01:31]} Nd5 {[%emt 0:02:39]} 37. Rf1+ {[%emt 0:00:31]} Kg5 {[%emt 0:00:13]} 38. Nd8 {[%emt 0:02:07]} Rb8 {[%emt 0:05:00]} 39. Nxf7+ {[%emt 0:05:03]} Kxh5 {[%emt 0:00:06]} 40. Rh1+ {[%emt 0:05:33]} Kg6 {[%emt 0:02:43]} 41. Nd8 {[%emt 0:30:08]} Rb6 {[%emt 0:10:08]} 42. Nc6 {[%emt 0:00:00]} Rxb5 {[%emt 0:03:30]} 43. Rxe6+ {[%emt 0:00:00]} Kg5 {[%emt 0:05:23]} 44. Rc1 {[%emt 0:00:00]} Nf4 {[%emt 0:02:39]} 45. Rg1+ {[%emt 0:00:00]} Kh5 {[%emt 0:00:08]} 46. Rd6 {[%emt 0:00:00]} Rc5 {[%emt 0:03:32]} 47. Rh1+ {[%emt 0:00:00]} Kg4 {[%emt 0:01:02]} 48. Rg1+ {[%emt 0:00:00]} Kh5 {[%emt 0:00:17]} 49. Nb4 {[%emt 0:00:00]} Rg5 {[%emt 0:01:39]} 50. Rh1+ {[%emt 0:00:00]} Kg4 {[%emt 0:00:06]} 51. Rd4 {[%emt 0:00:00]} Rf5 {[%emt 0:01:07]} 52. Nc2 {[%emt 0:00:00]} Re7 {[%emt 0:01:04]} 53. Rc4 {[%emt 0:00:00]} Rff7 {[%emt 0:04:37]} 54. Rg1+ {[%emt 0:00:35]} Kf3 {[%emt 0:01:13]} 55. Rf1+ {[%emt 0:00:19]} Kg3 {[%emt 0:00:14]} 56. Nd4 {[%emt 0:00:42]} h5 {[%emt 0:00:55]} 57. Rc2 {[%emt 0:00:36]} Nd5 {[%emt 0:02:01]} 58. Rg1+ {[%emt 0:01:31]} Kh3 {[%emt 0:00:21]} 59. Rcc1 {[%emt 0:02:09]} Rf2 {[%emt 0:00:29]} 60. Rg5 {[%emt 0:00:14]} Nf4 {[%emt 0:00:14]} 61. Nf5 {[%emt 0:00:24]} Ree2 {[%emt 0:00:33]} 62. Rh1+ {[%emt 0:00:02]} Rh2 {[%emt 0:00:33]} 63. Rg3# {[%emt 0:00:02]} 1-0

[Event "18th Charleroi Open-A 2019"]
[Site "Charleroi"]
[Date "2019.08.02"]
[Round "8.4"]
[White "Capone, Nicola"]
[Black "Gurevich, Mikhail"]
[Result "0-1"]
[ECO "B09"]
[WhiteElo "2297"]
[BlackElo "2587"]
[Annotator "ChessBase"]
[PlyCount "58"]
[EventDate "2019.07.22"]
[EventType "swiss"]
[EventCountry "BEL"]
[SourceTitle "playchess.com"]
[Source "ChessBase"]
[SourceQuality "1"]
[TimeControl "40/5400+30:1800+30"]

1. e4 {[%emt 0:00:00]} d6 {[%emt 0:00:00]} 2. d4 {[%emt 0:00:03]} Nf6 {[%emt 0:00:00]} 3. Nc3 {[%emt 0:00:03]} g6 {[%emt 0:00:00]} 4. f4 {[%emt 0:00:05]} Bg7 {[%emt 0:00:00]} 5. Nf3 {[%emt 0:00:04]} c5 {[%emt 0:00:19]} 6. dxc5 {[%emt 0:00:32]} Qa5 {[%emt 0:00:06]} 7. Qd3 {[%emt 0:00:06]} Qxc5 {[%emt 0:15:31]} 8. Be3 {[%emt 0:00:25]} Qa5 {[%emt 0:03:09]} 9. Qb5+ {[%emt 0:00:24]} Nc6 {[%emt 0:00:22]} 10. Qxa5 {[%emt 0:07:10]} Nxa5 {[%emt 0:00:04]} 11. Bb5+ {[%emt 0:00:07]} Nc6 {[%emt 0:11:42]} 12. Nd5 {[%emt 0:18:22]} Nxd5 {[%emt 0:05:01]} 13. exd5 {[%emt 0:00:05]} a6 {[%emt 0:00:04]} 14. Bxc6+ {[%emt 0:17:45]} bxc6 {[%emt 0:01:27]} 15. dxc6 {[%emt 0:00:04]} Bf5 {[%emt 0:15:22]} 16. Bd4 {[%emt 0:10:41]} f6 {[%emt 0:00:13]} 17. Bb6 {[%emt 0:14:04]} Rb8 {[%emt 0:07:52]} 18. Ba5 {[%emt 0:00:21]} Rxb2 {[%emt 0:00:09]} 19. Nd4 {[%emt 0:03:16]} Be4 {[%emt 0:02:28]} 20. f5 {[%emt 0:00:03]} gxf5 {[%emt 0:06:28]} 21. Kd2 {[%emt 0:05:18]} Rb8 {[%emt 0:05:53]} 22. c7 {[%emt 0:07:39]} Rc8 {[%emt 0:00:21]} 23. Rhf1 {[%emt 0:00:22]} Bh6+ {[%emt 0:01:41]} 24. Kc3 {[%emt 0:00:06]} f4 {[%emt 0:00:17]} 25. Ne6 {[%emt 0:13:07]} Rg8 {[%emt 0:00:52]} 26. Rab1 {[%emt 0:01:18]} Bxg2 {[%emt 0:03:40]} 27. Rb8 {[%emt 0:00:33]} Kd7 {[%emt 0:00:08]} 28. Nc5+ {[%emt 0:00:37]} Kc6 {[%emt 0:01:31]} 29. Rfb1 {[%emt 0:01:15]} Kxc5 {[%emt 0:01:10] Kd4+} 0-1

[Event "18th Charleroi Open-A 2019"]
[Site "Charleroi"]
[Date "2019.08.02"]
[Round "8.5"]
[White "Dauw, Sterre"]
[Black "Maerevoet, Sim"]
[Result "1/2-1/2"]
[ECO "B90"]
[WhiteElo "2148"]
[BlackElo "2321"]
[Annotator "NA"]
[PlyCount "95"]
[EventDate "2019.07.22"]
[EventType "swiss"]
[EventCountry "BEL"]
[SourceTitle "playchess.com"]
[Source "ChessBase"]
[SourceQuality "1"]
[TimeControl "40/5400+30:1800+30"]

1. e4 {[%emt 0:04:39]} c5 {[%emt 0:00:00]} 2. Nf3 {[%emt 0:00:07]} d6 {[%emt 0:00:00]} 3. d4 {[%emt 0:00:05]} cxd4 {[%emt 0:00:00]} 4. Nxd4 {[%emt 0:00:08]} Nf6 {[%emt 0:00:00]} 5. Nc3 {[%emt 0:00:11]} a6 {[%emt 0:00:00]} 6. f3 {[%emt 0:00:06]} e5 {[%emt 0:00:40]} 7. Nb3 {[%emt 0:02:06]} Be6 {[%emt 0:00:07]} 8. Be3 {[%emt 0:00:52]} Be7 {[%emt 0:00:18]} 9. Qd2 {[%emt 0:00:07]} h5 {[%emt 0:00:23]} 10. O-O-O {[%emt 0:01:52]} Nbd7 {[%emt 0:01:36]} 11. Kb1 {[%emt 0:05:32]} Rc8 {[%emt 0:02:34]} 12. h3 {[%emt 0:02:26]} b5 {[%emt 0:04:05]} 13. Bd3 {[%emt 0:02:05]} h4 {[%emt 0:02:08]} 14. Rhe1 {[%emt 0:12:44]} Nb6 {[%emt 0:18:46]} 15. f4 {[%emt 0:32:01]} Nc4 {[%emt 0:15:47]} 16. Bxc4 {[%emt 0:00:10]} Rxc4 {[%emt 0:00:19]} 17. Qf2 {[%emt 0:08:19]} Qc8 {[%emt 0:07:45]} 18. f5 {[%emt 0:04:27]} Bd7 {[%emt 0:00:37]} 19. Bg5 {[%emt 0:00:52]} b4 {[%emt 0:22:08]} 20. Bxf6 {[%emt 0:03:26]} Bxf6 {[%emt 0:00:15]} 21. Nd5 {[%emt 0:01:00]} Bd8 {[%emt 0:00:09]} 22. f6 {[%emt 0:08:16]} g6 {[%emt 0:03:16]} 23. Nb6 {[%emt 0:01:26]} Bxb6 {[%emt 0:00:26]} 24. Qxb6 {[%emt 0:00:08]} Qc7 {[%emt 0:07:44]} 25. Rxd6 {[%emt 0:05:24]} O-O {[%emt 0:02:18]} 26. Qxc7 {[%emt 0:02:03]} Rxc7 {[%emt 0:00:06]} 27. Nd2 {[%emt 0:00:30]} Rfc8 {[%emt 0:01:59]} 28. Nf3 {[%emt 0:00:49]} Ba4 {[%emt 0:00:20]} 29. b3 {[%emt 0:00:36]} Bb5 {[%emt 0:00:18]} 30. Rd2 {[%emt 0:00:30]} Rc6 {[%emt 0:01:17]} 31. Nxe5 {[%emt 0:01:02]} Rxf6 {[%emt 0:00:09]} 32. Nf3 {[%emt 0:00:30]} Rf4 {[%emt 0:01:15]} 33. Nd4 {[%emt 0:00:19]} Bf1 {[%emt 0:02:32]} 34. Kb2 {[%emt 0:01:23]} Re8 {[%emt 0:00:18]} 35. e5 {[%emt 0:00:36]} Bxg2 {[%emt 0:00:25]} 36. Rxg2 {[%emt 0:00:07]} Rxd4 {[%emt 0:00:03]} 37. a3 {[%emt 0:00:54]} a5 {[%emt 0:01:05]} 38. Rge2 {[%emt 0:00:38]} Rc8 {[%emt 0:01:09]} 39. axb4 {[%emt 0:00:12]} axb4 {[%emt 0:00:04]} 40. Re4 {[%emt 0:00:35]} Rcd8 {[%emt 0:01:50]} 41. e6 {[%emt 0:06:51]} fxe6 {[%emt 0:04:34]} 42. Rxe6 {[%emt 0:00:17]} Kh7 {[%emt 0:01:21]} 43. Rb6 {[%emt 0:04:57]} Kh6 {[%emt 0:06:16]} 44. Ree6 {[%emt 0:02:26]} Rg8 {[%emt 0:00:07]} 45. Re5 {[%emt 0:00:12]} Rf8 {[%emt 0:02:48]} 46. Ree6 {[%emt 0:01:05]} Rg8 {[%emt 0:00:09]} 47. Re5 {[%emt 0:02:41]} Rf8 {[%emt 0:00:20]} 48. Ree6 {[%emt 0:00:06]} 1/2-1/2

[Event "18th Charleroi Open-A 2019"]
[Site "Charleroi"]
[Date "2019.08.02"]
[Round "8.6"]
[White "Verheyen, Olivier"]
[Black "Klinova, Masha"]
[Result "0-1"]
[ECO "B07"]
[WhiteElo "2200"]
[BlackElo "2269"]
[Annotator "NA"]
[PlyCount "83"]
[EventDate "2019.07.22"]
[EventType "swiss"]
[EventCountry "BEL"]
[SourceTitle "playchess.com"]
[Source "ChessBase"]
[SourceQuality "1"]
[TimeControl "40/5400+30:1800+30"]

1. e4 {[%emt 0:00:00]} d6 {[%emt 0:00:00]} 2. d4 {[%emt 0:00:00]} Nf6 {[%emt 0:00:00]} 3. Nc3 {[%emt 0:00:00]} e5 {[%emt 0:00:00]} 4. Nge2 {[%emt 0:00:50]} Nc6 {[%emt 0:01:59]} 5. h3 {[%emt 0:04:12]} Be7 {[%emt 0:01:18]} 6. g4 {[%emt 0:02:22]} d5 {[%emt 0:01:55]} 7. exd5 {[%emt 0:17:39]} Nxd5 {[%emt 0:03:35]} 8. dxe5 {[%emt 0:02:17]} Nxc3 {[%emt 0:02:48]} 9. Qxd8+ {[%emt 0:00:22]} Bxd8 {[%emt 0:00:37]} 10. Nxc3 {[%emt 0:00:07]} Nxe5 {[%emt 0:00:27]} 11. Bg2 {[%emt 0:00:42]} O-O {[%emt 0:01:20]} 12. O-O {[%emt 0:00:45]} c6 {[%emt 0:00:27]} 13. Ne4 {[%emt 0:03:37]} f5 {[%emt 0:07:32]} 14. Nd6 {[%emt 0:04:15]} fxg4 {[%emt 0:01:52]} 15. Nxc8 {[%emt 0:06:48]} Rxc8 {[%emt 0:01:14]} 16. hxg4 {[%emt 0:00:10]} Bb6 {[%emt 0:04:36]} 17. Be3 {[%emt 0:06:24]} Bxe3 {[%emt 0:08:09]} 18. fxe3 {[%emt 0:00:23]} Nxg4 {[%emt 0:00:27]} 19. Bh3 {[%emt 0:00:59]} h5 {[%emt 0:00:11]} 20. Bxg4 {[%emt 0:01:32]} hxg4 {[%emt 0:00:05]} 21. Kg2 {[%emt 0:04:08]} Rcd8 {[%emt 0:01:03]} 22. Rad1 {[%emt 0:02:39]} Rfe8 {[%emt 0:06:42]} 23. Kg3 {[%emt 0:04:40]} Rxe3+ {[%emt 0:03:44]} 24. Kxg4 {[%emt 0:00:08]} Rxd1 {[%emt 0:03:59]} 25. Rxd1 {[%emt 0:00:05]} Kf7 {[%emt 0:00:04]} 26. b3 {[%emt 0:13:02]} Ke6 {[%emt 0:08:01]} 27. Rd2 {[%emt 0:05:40]} Rc3 {[%emt 0:04:41]} 28. a4 {[%emt 0:00:51]} c5 {[%emt 0:03:08]} 29. Kf4 {[%emt 0:03:14]} c4 {[%emt 0:03:04]} 30. b4 {[%emt 0:05:40]} Ra3 {[%emt 0:00:48]} 31. a5 {[%emt 0:03:30]} Rh3 {[%emt 0:05:09]} 32. Rg2 {[%emt 0:02:04]} Kf6 {[%emt 0:00:54]} 33. Ke4 {[%emt 0:01:29]} g5 {[%emt 0:00:45]} 34. Kd5 {[%emt 0:01:12]} c3 {[%emt 0:01:41]} 35. b5 {[%emt 0:03:53]} Rf3 36. a6 {[%emt 0:00:34]} Rf5+ {[%emt 0:03:07]} 37. Kc4 {[%emt 0:00:06]} b6 {[%emt 0:03:32]} 38. Rh2 {[%emt 0:01:50]} Rc5+ {[%emt 0:00:53]} 39. Kd4 {[%emt 0:00:04]} g4 {[%emt 0:01:20]} 40. Rh7 {[%emt 0:00:33]} g3 {[%emt 0:00:18]} 41. Ke3 {[%emt 0:30:02]} Rg5 {[%emt 0:31:59]} 42. Kd4 {[%emt 0:02:12] Ke5+} 0-1

[Event "18th Charleroi Open-A 2019"]
[Site "Charleroi"]
[Date "2019.08.02"]
[Round "8.7"]
[White "Gijsen, Stief"]
[Black "Goormachtigh, Johan"]
[Result "0-1"]
[ECO "D97"]
[WhiteElo "2227"]
[BlackElo "2164"]
[Annotator "ChessBase"]
[PlyCount "152"]
[EventDate "2019.07.22"]
[EventType "swiss"]
[EventCountry "BEL"]
[SourceTitle "playchess.com"]
[Source "ChessBase"]
[SourceQuality "1"]
[TimeControl "40/5400+30:1800+30"]

1. d4 {[%emt 0:00:00]} Nf6 {[%emt 0:00:00]} 2. c4 {[%emt 0:00:00]} g6 {[%emt 0:01:16]} 3. Nc3 {[%emt 0:00:00]} d5 {[%emt 0:02:36]} 4. Nf3 {[%emt 0:00:25]} Bg7 {[%emt 0:00:06]} 5. Qb3 {[%emt 0:00:10]} dxc4 {[%emt 0:00:31]} 6. Qxc4 {[%emt 0:00:06]} O-O {[%emt 0:00:33]} 7. e4 {[%emt 0:00:27]} Na6 {[%emt 0:03:02]} 8. Be2 {[%emt 0:01:10]} c5 {[%emt 0:00:08]} 9. d5 {[%emt 0:00:07]} e6 {[%emt 0:00:07]} 10. O-O {[%emt 0:00:08]} exd5 {[%emt 0:00:05]} 11. exd5 {[%emt 0:00:03]} Bf5 {[%emt 0:00:24]} 12. Rd1 {[%emt 0:00:15]} Re8 {[%emt 0:24:53]} 13. d6 {[%emt 0:04:04]} Bc2 {[%emt 0:02:20]} 14. Ng5 {[%emt 0:23:51]} Qd7 {[%emt 0:17:25]} 15. Rd2 {[%emt 0:03:10]} Bf5 {[%emt 0:02:24]} 16. h3 {[%emt 0:08:14]} h6 {[%emt 0:11:45]} 17. Nf3 {[%emt 0:03:38]} Ne4 {[%emt 0:04:15]} 18. Rd1 {[%emt 0:07:39]} Bxc3 {[%emt 0:15:03]} 19. bxc3 {[%emt 0:01:06]} Nxd6 {[%emt 0:00:07]} 20. Qd5 {[%emt 0:06:26]} Rxe2 {[%emt 0:00:18]} 21. Qxd6 {[%emt 0:22:22]} Qxd6 {[%emt 0:00:18]} 22. Rxd6 {[%emt 0:00:04]} Kg7 23. Be3 {[%emt 0:03:39]} Rc2 {[%emt 0:06:22]} 24. Rxa6 {[%emt 0:01:36]} bxa6 {[%emt 0:00:13]} 25. Bxc5 Be4 {[%emt 0:01:23]} 26. Bd4+ {[%emt 0:00:15]} Kg8 {[%emt 0:00:32]} 27. Ne5 {[%emt 0:00:21]} Rb2 {[%emt 0:03:47]} 28. Re1 {[%emt 0:03:13]} Rb1 {[%emt 0:00:05]} 29. Rxb1 {[%emt 0:00:55]} Bxb1 {[%emt 0:00:02]} 30. a3 {[%emt 0:00:57]} Bf5 {[%emt 0:00:47]} 31. Nc6 {[%emt 0:02:13]} Be4 {[%emt 0:01:01]} 32. Ne5 {[%emt 0:01:59]} h5 {[%emt 0:01:08]} 33. Nd7 {[%emt 0:03:16]} Bd3 {[%emt 0:00:43]} 34. Nc5 {[%emt 0:00:16]} Bc4 {[%emt 0:00:57]} 35. f4 {[%emt 0:00:13]} Re8 {[%emt 0:00:39]} 36. Be5 {[%emt 0:01:31]} Rd8 {[%emt 0:01:01]} 37. Bd4 {[%emt 0:00:15]} Rd6 {[%emt 0:00:53]} 38. Kf2 {[%emt 0:02:30]} Rb6 {[%emt 0:00:34]} 39. g4 {[%emt 0:00:24]} Rb2+ {[%emt 0:00:44]} 40. Kg3 {[%emt 0:00:30]} hxg4 {[%emt 0:00:36]} 41. hxg4 {[%emt 0:32:17]} Kf8 {[%emt 0:03:44]} 42. f5 {[%emt 0:00:00]} gxf5 {[%emt 0:01:51]} 43. gxf5 {[%emt 0:00:00]} Ke7 {[%emt 0:00:10]} 44. Kf4 {[%emt 0:00:00]} Ra2 {[%emt 0:04:25]} 45. a4 {[%emt 0:00:00]} Bd5 {[%emt 0:01:44]} 46. Ke5 {[%emt 0:00:00]} Bc6 {[%emt 0:01:12]} 47. f6+ {[%emt 0:00:00]} Ke8 {[%emt 0:02:46]} 48. Kd6 {[%emt 0:00:00]} Bxa4 {[%emt 0:00:37]} 49. Nxa6 {[%emt 0:00:00]} Bb3 {[%emt 0:02:01]} 50. Nb4 {[%emt 0:00:00]} Re2 {[%emt 0:10:24]} 51. Bxa7 {[%emt 0:00:00]} Re6+ {[%emt 0:00:09]} 52. Kc5 {[%emt 0:00:00]} Rxf6 {[%emt 0:00:09]} 53. Bb8 {[%emt 0:00:00]} Rh6 {[%emt 0:02:22]} 54. Be5 {[%emt 0:00:00]} Kd7 {[%emt 0:00:59]} 55. Nd3 {[%emt 0:00:18]} Rc6+ {[%emt 0:00:38]} 56. Kb4 {[%emt 0:00:33]} Be6 {[%emt 0:01:29]} 57. Nc5+ {[%emt 0:00:34]} Ke7 {[%emt 0:04:47]} 58. Kb5 {[%emt 0:03:48]} Bd7 {[%emt 0:00:00]} 59. Nxd7 {[%emt 0:00:35]} Kxd7 {[%emt 0:00:00]} 60. c4 {[%emt 0:00:36]} Re6 {[%emt 0:00:00]} 61. Bg3 {[%emt 0:00:58]} Re3 {[%emt 0:00:00]} 62. Bh2 {[%emt 0:00:10]} Re2 {[%emt 0:00:00]} 63. Bg3 {[%emt 0:00:30]} f5 {[%emt 0:00:00]} 64. c5 {[%emt 0:00:53]} Rb2+ {[%emt 0:00:00]} 65. Kc4 {[%emt 0:00:05]} Kc6 {[%emt 0:00:00]} 66. Kd4 {[%emt 0:00:37]} Re2 {[%emt 0:00:00]} 67. Bd6 {[%emt 0:00:53]} Re4+ {[%emt 0:00:00]} 68. Kd3 {[%emt 0:00:03]} Kd5 {[%emt 0:00:02]} 69. Bf8 {[%emt 0:00:46]} f4 {[%emt 0:05:58]} 70. Bh6 {[%emt 0:03:56]} Re3+ {[%emt 0:00:50]} 71. Kd2 {[%emt 0:00:07]} Ke4 {[%emt 0:04:45]} 72. c6 {[%emt 0:00:22]} Rd3+ {[%emt 0:00:10]} 73. Ke2 {[%emt 0:00:59]} Rd6 {[%emt 0:00:06]} 74. Bg7 {[%emt 0:00:42]} Rxc6 {[%emt 0:00:11]} 75. Bf8 {[%emt 0:01:02]} Rc2+ {[%emt 0:00:11]} 76. Kf1 {[%emt 0:00:04]} Ke5 {[%emt 0:06:32]} 0-1

[Event "18th Charleroi Open-A 2019"]
[Site "Charleroi"]
[Date "2019.08.02"]
[Round "8.8"]
[White "De Waele, Warre"]
[Black "Anciaux, Marc"]
[Result "0-1"]
[ECO "A45"]
[WhiteElo "2225"]
[BlackElo "2120"]
[Annotator "NA"]
[PlyCount "48"]
[EventDate "2019.07.22"]
[EventType "swiss"]
[EventCountry "BEL"]
[SourceTitle "playchess.com"]
[Source "ChessBase"]
[SourceQuality "1"]
[TimeControl "40/5400+30:1800+30"]

1. d4 {[%emt 1:30:30]} Nf6 {[%emt 0:03:39]} 2. Bg5 {[%emt 0:00:00]} e6 {[%emt 0:02:12]} 3. e4 {[%emt 0:00:00]} d5 {[%emt 0:00:56]} 4. e5 {[%emt 0:00:00]} h6 {[%emt 0:00:12]} 5. Bh4 {[%emt 0:00:00]} g5 {[%emt 0:00:16]} 6. Bg3 {[%emt 0:00:00]} Ne4 {[%emt 0:07:57]} 7. h4 {[%emt 0:00:00]} c5 {[%emt 0:03:00]} 8. hxg5 {[%emt 0:00:00]} Nxg3 {[%emt 0:01:19]} 9. fxg3 {[%emt 0:00:00]} Qxg5 {[%emt 0:00:18]} 10. Bb5+ {[%emt 0:00:00]} Nc6 {[%emt 0:03:46]} 11. Kf2 {[%emt 0:00:00]} cxd4 {[%emt 0:02:05]} 12. Qxd4 {[%emt 0:00:00]} Qf5+ {[%emt 0:02:36]} 13. Nf3 {[%emt 0:00:00]} Qxc2+ {[%emt 0:01:39]} 14. Qd2 {[%emt 0:00:00]} Bc5+ {[%emt 0:10:05]} 15. Kf1 {[%emt 0:00:00]} Qxd2 {[%emt 0:00:39]} 16. Nbxd2 {[%emt 0:00:00]} Bd7 {[%emt 0:00:21]} 17. Nb3 {[%emt 0:00:00]} Nxe5 {[%emt 0:02:17]} 18. Bxd7+ {[%emt 0:00:00]} Nxd7 {[%emt 0:00:11]} 19. Nxc5 {[%emt 0:00:00]} Nxc5 {[%emt 0:00:25]} 20. Rc1 {[%emt 0:00:00]} Ne4 {[%emt 0:01:58]} 21. Rh3 {[%emt 0:00:00]} Kd8 {[%emt 0:00:47]} 22. Ne5 {[%emt 0:00:00]} Rh7 {[%emt 0:01:12]} 23. Rxh6 {[%emt 0:00:00]} Rxh6 {[%emt 0:00:10]} 24. Nxf7+ {[%emt 0:00:00]} Kd7 {[%emt 0:00:59]} 0-1

[Event "18th Charleroi Open-A 2019"]
[Site "Charleroi"]
[Date "2019.08.02"]
[Round "8.9"]
[White "Decrop, Benjamin"]
[Black "De Villers, Mourad"]
[Result "1/2-1/2"]
[ECO "B36"]
[WhiteElo "2183"]
[BlackElo "2140"]
[Annotator "NA"]
[PlyCount "40"]
[EventDate "2019.07.22"]
[EventType "swiss"]
[EventCountry "BEL"]
[SourceTitle "playchess.com"]
[Source "ChessBase"]
[SourceQuality "1"]
[TimeControl "40/5400+30:1800+30"]

1. e4 {[%emt 1:30:30]} c5 {[%emt 1:30:30]} 2. Nf3 {[%emt 0:00:30]} g6 {[%emt 0:00:30]} 3. d4 {[%emt 0:00:30]} cxd4 {[%emt 0:00:30]} 4. Nxd4 {[%emt 0:00:30]} Nc6 {[%emt 0:00:30]} 5. c4 {[%emt 0:00:30]} Nf6 {[%emt 0:00:30]} 6. Nc3 {[%emt 0:00:30]} d6 {[%emt 0:00:30]} 7. f3 {[%emt 0:00:30]} Nxd4 {[%emt 0:00:30]} 8. Qxd4 {[%emt 0:00:30]} Bg7 {[%emt 0:00:30]} 9. Be3 {[%emt 0:00:30]} O-O {[%emt 0:00:30]} 10. Qd2 {[%emt 0:00:30]} Be6 {[%emt 0:00:30]} 11. Bd3 {[%emt 0:00:30]} Qa5 {[%emt 0:00:30]} 12. Rc1 {[%emt 0:00:30]} Rfc8 {[%emt 0:00:30]} 13. b3 {[%emt 0:00:30]} a6 {[%emt 0:00:30]} 14. Ne2 {[%emt 0:00:30]} Qd8 {[%emt 0:00:30]} 15. O-O {[%emt 0:00:30]} h5 {[%emt 0:00:30]} 16. Kh1 {[%emt 0:00:30]} Kh7 {[%emt 0:00:30]} 17. Bg5 {[%emt 0:00:30]} Rc5 18. Be3 Rcc8 19. Bg5 {[%emt 0:01:00]} Rc5 {[%emt 0:01:30]} 20. Be3 {[%emt 0:00:30]} Rcc8 {[%emt 0:00:30]} 1/2-1/2

[Event "18th Charleroi Open-A 2019"]
[Site "Charleroi"]
[Date "2019.08.02"]
[Round "8.11"]
[White "Huynh, Laurent"]
[Black "Van Mechelen, Jan"]
[Result "1/2-1/2"]
[ECO "C00"]
[WhiteElo "2111"]
[BlackElo "2218"]
[Annotator "NA"]
[PlyCount "43"]
[EventDate "2019.07.22"]
[EventType "swiss"]
[EventCountry "BEL"]
[SourceTitle "playchess.com"]
[Source "ChessBase"]
[SourceQuality "1"]
[TimeControl "40/5400+30:1800+30"]

1. e4 {[%emt 0:00:02]} c5 {[%emt 0:00:00]} 2. Nf3 {[%emt 0:00:08]} e6 {[%emt 0:00:15]} 3. d3 {[%emt 0:01:23]} d5 {[%emt 0:00:45]} 4. Nbd2 {[%emt 0:00:09]} Nc6 {[%emt 0:00:28]} 5. g3 {[%emt 0:00:14]} Nf6 {[%emt 0:00:44]} 6. Bg2 {[%emt 0:00:07]} Be7 {[%emt 0:00:08]} 7. O-O {[%emt 0:00:06]} O-O {[%emt 0:00:07]} 8. Re1 {[%emt 0:00:09]} b5 {[%emt 0:00:54]} 9. e5 {[%emt 0:00:41]} Ne8 {[%emt 0:00:09]} 10. c3 {[%emt 0:02:43]} b4 {[%emt 0:01:43]} 11. c4 {[%emt 0:02:34]} Nc7 {[%emt 0:01:03]} 12. Nf1 {[%emt 0:02:33]} a5 {[%emt 0:03:48]} 13. Bf4 {[%emt 0:04:23]} a4 {[%emt 0:04:48]} 14. h4 {[%emt 0:00:24]} Na5 {[%emt 0:13:17]} 15. Ne3 {[%emt 0:02:28]} b3 {[%emt 0:03:11]} 16. a3 {[%emt 0:00:08]} Bb7 {[%emt 0:00:57]} 17. Rc1 {[%emt 0:02:04]} dxc4 {[%emt 0:02:06]} 18. dxc4 {[%emt 0:00:53]} Qxd1 {[%emt 0:00:24]} 19. Rexd1 {[%emt 0:00:58]} Rfd8 {[%emt 0:01:00]} 20. Ng5 {[%emt 0:01:39]} Bxg2 {[%emt 0:01:20]} 21. Kxg2 {[%emt 0:02:09]} Nc6 {[%emt 0:01:17]} 22. Ne4 {[%emt 0:09:06]} 1/2-1/2